bitfinex/quotes_BTCUSD_20260104
["timestamp","ask_amount","ask_price","bid_price","bid_amount"]
[1767529114254,0.06579384,91194.0,91189.0,0.06575163]
[1767529114499,0.06579384,91194.0,91190.0,0.01096611]
[1767529114876,0.06579384,91194.0,91189.0,0.06575163]
[1767529115075,0.01096563,91194.0,91190.0,0.01096611]
[1767529115278,0.06579391,91194.0,91190.0,0.01096611]
[1767529115525,0.01096563,91194.0,91190.0,0.06579667]
[1767529115719,0.0657935,91195.0,91190.0,0.06579667]
[1767529116061,0.01096563,91194.0,91190.0,0.06575137]
[1767529116303,0.0657935,91195.0,91190.0,0.06575137]
[1767529117099,0.06579411,91194.0,91190.0,0.01096611]
[1767529117324,0.06579411,91194.0,91189.0,0.06575163]
[1767529117839,0.01096563,91194.0,91190.0,0.06579662]
[1767529118285,0.06579471,91193.0,91189.0,0.01092093]
[1767529118455,0.06579407,91194.0,91189.0,0.06575207]
[1767529119566,0.06579452,91193.0,91188.0,0.06579803]
[1767529120210,0.06579407,91194.0,91189.0,0.06579734]
[1767529120418,0.01096563,91194.0,91190.0,0.06579666]
[1767529120626,0.01096587,91192.0,91188.0,0.01096635]
[1767529120827,0.06579551,91192.0,91187.0,0.06579842]
[1767529121076,0.06579503,91193.0,91189.0,0.01096623]
[1767529121242,0.06579547,91192.0,91188.0,0.04979198]
[1767529121440,0.06579547,91192.0,91188.0,0.06075833]
[1767529121670,0.06579503,91193.0,91188.0,0.11559]
[1767529121863,0.06579503,91193.0,91189.0,0.04979198]
[1767529122068,0.06579524,91192.0,91189.0,0.04879298]
[1767529122232,0.01096587,91192.0,91189.0,0.04879298]
[1767529122430,0.01096575,91193.0,91189.0,0.05971391]
[1767529122630,0.06579382,91194.0,91189.0,0.05971391]
[1767529122830,0.06579462,91193.0,91189.0,0.04874768]
[1767529123067,0.01096575,91193.0,91189.0,0.05971391]
[1767529123479,0.06579382,91194.0,91189.0,0.11454496]
[1767529123794,0.06579316,91195.0,91191.0,0.01096599]
[1767529124014,0.01096563,91194.0,91190.0,0.04979198]
[1767529124218,0.01096563,91194.0,91190.0,0.06075809]
[1767529124849,0.01096563,91194.0,91190.0,0.11558861]
[1767529125301,0.06579316,91195.0,91190.0,0.11558861]
[1767529126219,0.01096563,91194.0,91190.0,0.06075809]
[1767529126379,0.06579391,91194.0,91190.0,0.04979198]
[1767529126595,0.01096563,91194.0,91190.0,0.06075809]
[1767529127048,0.06579316,91195.0,91190.0,0.11558846]
[1767529127171,0.06579316,91195.0,91189.0,3.28e-06]
[1767529127766,0.21929178,91203.0,91196.0,0.01096539]
[1767529127767,7.532e-05,91200.0,91196.0,0.01096539]
[1767529128022,0.01096503,91199.0,91194.0,0.01096563]
[1767529128227,0.01096503,91199.0,91194.0,0.06579363]
[1767529128405,7.532e-05,91200.0,91195.0,0.06579296]
[1767529128582,0.06586483,91200.0,91195.0,0.06579296]
[1767529129003,0.06579019,91199.0,91194.0,0.01096563]
[1767529129329,0.06579092,91198.0,91193.0,0.01096575]
[1767529129488,0.06579019,91199.0,91194.0,0.01096563]
[1767529129671,0.01096503,91199.0,91194.0,0.06579376]
[1767529130107,0.01104023,91200.0,91195.0,0.01096551]
[1767529130329,0.06586494,91200.0,91195.0,0.01096551]
[1767529130734,0.06586485,91200.0,91195.0,0.06579283]
[1767529130934,0.06586485,91200.0,91195.0,0.01096551]
[1767529131433,0.06579029,91199.0,91194.0,0.01096563]
[1767529131997,0.01096503,91199.0,91195.0,0.01096551]
[1767529132549,0.01096503,91199.0,91194.0,0.06579375]
[1767529132884,0.01096515,91198.0,91193.0,0.06579447]
[1767529133116,0.06579043,91199.0,91194.0,0.06579375]
[1767529133772,0.06579092,91198.0,91193.0,0.06579447]
[1767529134065,0.06579043,91199.0,91194.0,0.06579374]
[1767529134278,0.01096515,91198.0,91194.0,0.01096563]
[1767529135231,0.06579043,91199.0,91194.0,0.01096563]
[1767529135654,0.06579098,91198.0,91193.0,0.06579447]
[1767529135858,0.06579098,91198.0,91193.0,0.01096575]
[1767529137271,0.01096527,91197.0,91193.0,0.01096575]
[1767529137627,0.06579098,91198.0,91193.0,0.06579446]
[1767529137883,0.06579178,91197.0,91192.0,0.06579512]
[1767529138127,0.01096539,91196.0,91192.0,0.01096587]
[1767529138326,0.06579178,91197.0,91192.0,0.06579498]
[1767529139558,0.01096527,91197.0,91193.0,0.01096575]
[1767529140531,0.06579021,91199.0,91194.0,0.01096563]
[1767529140741,0.06579021,91199.0,91193.0,0.06579442]
[1767529140742,0.01096503,91199.0,91193.0,0.01096575]
[1767529140864,0.06586496,91200.0,91195.0,0.06579291]
[1767529141077,0.06586496,91200.0,91195.0,0.06574761]
[1767529141317,0.01096503,91199.0,91195.0,0.01096551]
[1767529141521,0.03161481,91192.0,91155.0,1.14509415]
[1767529141723,0.03161481,91192.0,91153.0,0.42867242]
[1767529141724,0.02064739,91187.0,91172.0,0.01096827]
[1767529141969,0.02192,91186.0,91175.0,0.05904099]
[1767529142137,0.01096683,91184.0,91180.0,0.04807308]
[1767529142373,0.05483302,91186.0,91184.0,0.01]
[1767529142678,0.05483302,91186.0,91180.0,0.05904039]
[1767529142679,0.06579984,91186.0,91181.0,0.01096719]
[1767529142822,0.01096659,91186.0,91182.0,0.06580238]
[1767529143034,0.01096659,91186.0,91181.0,0.01096719]
[1767529143215,0.01096659,91186.0,91182.0,0.01096707]
[1767529143411,0.01096659,91186.0,91181.0,0.06580316]
[1767529144001,0.06579961,91186.0,91181.0,0.01096719]
[1767529144254,0.02064739,91185.0,91182.0,0.01096707]
[1767529144617,0.02064739,91185.0,91182.0,0.06580231]
[1767529145055,0.02064739,91185.0,91182.0,0.01096707]
[1767529146032,0.02064739,91185.0,91182.0,0.06580243]
[1767529146232,0.01964839,91185.0,91183.0,0.05483474]
[1767529146658,0.01964839,91185.0,91182.0,0.06580126]
[1767529147242,0.01964839,91185.0,91181.0,0.06580198]
[1767529147440,0.01964839,91185.0,91182.0,0.01096707]
[1767529148725,0.05482937,91192.0,91185.0,0.01096671]
[1767529148888,0.06579437,91194.0,91190.0,0.04807308]
[1767529149268,0.06579437,91194.0,91188.0,0.01096635]
[1767529149269,0.06579437,91194.0,91188.0,0.05903943]
[1767529149492,0.01096587,91192.0,91188.0,0.04807308]
[1767529149872,0.01096539,91196.0,91190.0,0.01096611]
[1767529150080,0.01096527,91197.0,91192.0,0.009001]
[1767529150280,0.01096551,91195.0,91192.0,0.009001]
[1767529150908,7.532e-05,91200.0,91194.0,0.01096563]
[1767529151108,7.532e-05,91200.0,91194.0,0.06579375]
[1767529151109,0.01096503,91199.0,91194.0,0.06579375]
[1767529151356,0.01096515,91198.0,91194.0,0.01096563]
[1767529151526,0.06579024,91199.0,91193.0,0.06579431]
[1767529151738,0.05482576,91198.0,91193.0,0.06579431]
[1767529151884,0.06579024,91199.0,91193.0,0.06579431]
[1767529152088,0.01096527,91197.0,91193.0,0.04807308]
[1767529152287,0.01096539,91196.0,91193.0,0.04807308]
[1767529152694,0.0657924,91196.0,91193.0,0.04807308]
[1767529152906,0.01096539,91196.0,91193.0,0.04807308]
[1767529153114,0.06579218,91197.0,91193.0,0.04807308]
[1767529153475,0.01096515,91198.0,91193.0,0.04807308]
[1767529153675,0.06579092,91198.0,91194.0,0.04807308]
[1767529153887,0.01096527,91197.0,91194.0,0.04807308]
[1767529154414,0.06579092,91198.0,91194.0,0.04807308]
[1767529154805,0.01096515,91198.0,91194.0,0.05903871]
[1767529155172,0.01096515,91198.0,91194.0,0.04807308]
[1767529155583,0.06570249,91198.0,91194.0,0.04807308]
[1767529155920,0.06570249,91198.0,91197.0,0.00027756]
[1767529156119,0.06579023,91199.0,91197.0,5.6e-07]
[1767529156432,0.01096515,91198.0,91194.0,0.04807308]
[1767529156655,0.01096527,91197.0,91194.0,0.04807308]
[1767529157078,0.01096515,91198.0,91194.0,0.04807308]
[1767529157999,0.01096515,91198.0,91194.0,0.05903871]
[1767529158214,0.01096515,91198.0,91194.0,0.04807308]
[1767529158215,0.06579139,91198.0,91194.0,0.04807308]
[1767529158424,0.06579023,91199.0,91194.0,0.05903871]
[1767529158564,0.01096515,91198.0,91194.0,0.05903871]
[1767529158961,0.06579033,91199.0,91194.0,0.11386687]
[1767529159161,0.06586489,91200.0,91195.0,0.01096551]
[1767529159413,7.532e-05,91200.0,91199.0,0.04807308]
[1767529159613,0.000722,91199.0,91198.0,0.04807308]
[1767529160109,7.532e-05,91200.0,91198.0,0.04807308]
[1767529160307,0.000999,91198.0,91196.0,0.04807308]
[1767529160889,0.000999,91198.0,91196.0,0.04735108]
[1767529161521,0.05482636,91197.0,91196.0,0.04735108]
[1767529162697,0.05482636,91197.0,91196.0,0.04635208]
[1767529163710,0.054826,91198.0,91196.0,0.04635208]
[1767529164620,0.06579163,91197.0,91192.0,0.03292587]
[1767529164980,0.01096527,91197.0,91193.0,0.04807308]
[1767529165457,0.06579235,91196.0,91193.0,0.04807308]
[1767529165825,0.05482775,91195.0,91193.0,0.04807308]
[1767529166324,0.04152765,91188.0,91182.0,0.05483487]
[1767529166526,0.05483319,91186.0,91182.0,0.04807308]
[1767529166728,7.532e-05,91200.0,91182.0,0.04807308]
[1767529166729,0.01096647,91187.0,91182.0,0.04807308]
[1767529166933,0.00992774,91187.0,91181.0,0.04807308]
[1767529167157,0.01096659,91186.0,91182.0,0.02196]
[1767529167329,0.06580154,91184.0,91183.0,0.06903408]
[1767529168159,0.01096683,91184.0,91183.0,0.06903408]
[1767529168371,0.05483358,91185.0,91183.0,0.06903408]
[1767529168790,0.05483418,91184.0,91183.0,0.06903408]
[1767529169164,0.06580327,91181.0,91178.0,0.04807308]
[1767529169483,0.05483658,91180.0,91179.0,0.02196]
[1767529169631,0.06580754,91175.0,91171.0,0.04807308]
[1767529169827,0.00996903,91174.0,91172.0,0.02196]
[1767529170066,0.01096791,91175.0,91172.0,0.07003308]
[1767529170248,0.01096779,91176.0,91173.0,0.04611413]
[1767529170451,0.05483811,91178.0,91173.0,0.05708228]
[1767529170678,0.01096755,91178.0,91174.0,0.01096803]
[1767529171088,0.01096743,91179.0,91174.0,0.06580793]
[1767529171295,0.01096743,91179.0,91175.0,0.01096791]
[1767529171496,0.06580487,91179.0,91174.0,0.06580793]
[1767529171659,0.0658037,91181.0,91179.0,0.01]
[1767529171842,0.01096743,91179.0,91175.0,0.01096791]
[1767529172042,0.06580389,91180.0,91175.0,0.06580746]
[1767529172243,0.01096707,91182.0,91177.0,0.06580582]
[1767529172483,0.01096707,91182.0,91177.0,0.01096767]
[1767529172797,0.01096719,91181.0,91176.0,0.11192087]
[1767529173407,0.06580295,91182.0,91177.0,0.06580567]
[1767529173587,0.01096719,91181.0,91177.0,0.01096767]
[1767529174573,0.06580325,91181.0,91176.0,0.11192087]
[1767529174795,0.06580325,91181.0,91177.0,0.04763492]
[1767529175174,0.06571263,91181.0,91177.0,0.04763492]
[1767529176006,0.01087657,91181.0,91177.0,0.05860259]
[1767529176731,0.06580391,91180.0,91177.0,0.04763492]
[1767529177080,0.01096731,91180.0,91177.0,0.04763492]
[1767529177280,0.01087888,91180.0,91177.0,0.04763492]
[1767529177496,0.06571284,91181.0,91177.0,0.04763492]
[1767529177729,0.06562441,91181.0,91177.0,0.04763492]
[1767529177934,0.06580398,91180.0,91177.0,0.04763492]
[1767529178355,0.06562441,91181.0,91177.0,0.04763492]
[1767529178521,0.06562441,91181.0,91176.0,0.01096779]
[1767529179145,0.06562441,91181.0,91176.0,0.0658065]
[1767529179349,0.06562441,91181.0,91177.0,0.01096767]
[1767529180050,0.01096731,91180.0,91176.0,0.0658065]
[1767529180663,0.06580198,91183.0,91176.0,0.01096779]
[1767529180877,0.01096623,91189.0,91182.0,0.05483494]
[1767529181041,0.01096647,91187.0,91183.0,0.01096695]
[1767529181240,0.06579885,91187.0,91182.0,0.01096707]
[1767529181439,0.06579885,91187.0,91182.0,0.06580227]
[1767529181645,0.01096659,91186.0,91181.0,0.06580316]
[1767529181845,0.06579886,91187.0,91182.0,0.06580227]
[1767529182061,0.06579886,91187.0,91182.0,0.01096707]
[1767529182261,0.01096659,91186.0,91182.0,0.01096707]
[1767529182787,0.06579983,91186.0,91181.0,0.06580315]
[1767529183486,0.06579983,91186.0,91181.0,0.06580305]
[1767529183731,0.01096659,91186.0,91182.0,0.01096707]
[1767529183936,0.01096659,91186.0,91182.0,0.0658023]
[1767529184384,0.06579983,91186.0,91181.0,0.06580305]
[1767529185173,0.06579983,91186.0,91182.0,0.01096707]
[1767529185374,0.01096647,91187.0,91183.0,0.01096695]
[1767529185593,0.01096647,91187.0,91183.0,0.0658014]
[1767529185910,0.065799,91187.0,91183.0,0.01096695]
[1767529186681,0.01096647,91187.0,91183.0,0.06580168]
[1767529186877,0.06579918,91188.0,91184.0,0.06580098]
[1767529187279,0.01096647,91187.0,91183.0,0.06580168]
[1767529187940,0.06579931,91187.0,91182.0,0.06580239]
[1767529188587,0.01096647,91187.0,91184.0,0.04763492]
[1767529188796,0.01096635,91188.0,91184.0,0.05860175]
[1767529189001,0.01096647,91187.0,91184.0,0.04663592]
[1767529189195,0.06579928,91187.0,91184.0,0.04663592]
[1767529189396,0.01096647,91187.0,91184.0,0.04663592]
[1767529190020,0.06579903,91187.0,91184.0,0.04663592]
[1767529190656,0.06579853,91188.0,91184.0,0.04663592]
[1767529191631,0.01096635,91188.0,91184.0,0.04663592]
[1767529191843,0.01096599,91191.0,91185.0,0.04763492]
[1767529192042,0.02196,91198.0,91190.0,0.04763492]
[1767529192263,0.05482828,91194.0,91188.0,0.01196535]
[1767529192415,0.05482828,91194.0,91188.0,0.04763492]
[1767529192620,0.05482945,91192.0,91188.0,0.04763492]
[1767529192858,0.01096599,91191.0,91188.0,0.04763492]
[1767529193190,0.06579722,91190.0,91185.0,0.05860163]
[1767529193554,0.01096611,91190.0,91185.0,0.11343518]
[1767529193767,0.01096611,91190.0,91186.0,0.01096659]
[1767529194108,0.06579612,91191.0,91186.0,0.01096659]
[1767529194429,0.06579568,91192.0,91186.0,0.06579956]
[1767529194633,0.01096587,91192.0,91187.0,0.01096647]
[1767529195048,0.06579469,91193.0,91188.0,0.01096635]
[1767529195482,0.06579469,91193.0,91188.0,0.01092104]
[1767529196633,0.06579469,91193.0,91188.0,0.06575271]
[1767529197373,0.06579407,91194.0,91189.0,0.06579731]
[1767529197938,0.01096563,91194.0,91190.0,0.01096611]
[1767529198315,0.06579316,91195.0,91190.0,0.01096611]
[1767529199089,0.04992367,91194.0,91188.0,0.03155002]
[1767529199293,0.06579289,91196.0,91187.0,0.23029415]
[1767529199523,0.01096551,91195.0,91192.0,0.04763492]
[1767529200191,0.08775095,91198.0,91192.0,0.04763492]
[1767529200407,0.08775136,91198.0,91195.0,0.05970425]
[1767529200631,0.08775136,91198.0,91195.0,0.05870525]
[1767529200848,0.08775136,91198.0,91195.0,0.04870525]
[1767529201009,0.0548265,91197.0,91195.0,0.04870525]
[1767529201410,0.05482667,91197.0,91195.0,0.04870525]
[1767529201608,0.01104023,91200.0,91198.0,0.04870525]
[1767529201847,0.05482576,91198.0,91197.0,0.01]
[1767529202010,0.06579091,91198.0,91195.0,0.04870525]
[1767529202435,0.01096515,91198.0,91195.0,0.04870525]
[1767529202633,0.06579112,91198.0,91195.0,0.04870525]
[1767529202833,0.06579019,91199.0,91195.0,0.04870525]
[1767529203039,0.01096515,91198.0,91195.0,0.04870525]
[1767529203365,0.06579019,91199.0,91198.0,0.000999]
[1767529203548,0.01096515,91198.0,91195.0,0.04870525]
[1767529203801,0.06586483,91200.0,91195.0,0.04870525]
[1767529204072,0.06579119,91198.0,91195.0,0.04870525]
[1767529204282,0.01096503,91199.0,91198.0,0.04965925]
[1767529204576,0.06579055,91199.0,91198.0,0.000954]
[1767529204873,0.06579092,91198.0,91194.0,0.04870525]
[1767529205676,0.01096515,91198.0,91194.0,0.04870525]
[1767529206254,0.06579055,91199.0,91194.0,0.05967088]
[1767529206577,0.01096515,91198.0,91194.0,0.05967088]
[1767529206780,7.532e-05,91200.0,91195.0,0.05967076]
[1767529206961,0.05482255,91204.0,91200.0,0.04870525]
[1767529207166,0.06578698,91204.0,91200.0,0.04870525]
[1767529207345,0.01096419,91206.0,91201.0,0.04870525]
[1767529207551,0.06578595,91205.0,91201.0,0.04865995]
[1767529207902,0.01096431,91205.0,91201.0,0.04865995]
[1767529208109,0.02674936,91206.0,91205.0,0.04870525]
[1767529208310,0.06583088,91205.0,91201.0,0.04870525]
[1767529208518,0.06578588,91205.0,91201.0,0.04870525]
[1767529209088,0.06578588,91205.0,91201.0,0.04865994]
[1767529210408,0.01096431,91205.0,91201.0,0.04865994]
[1767529210789,0.06578388,91208.0,91205.0,0.000954]
[1767529210971,0.01096419,91206.0,91202.0,0.01096467]
[1767529211172,0.01096407,91207.0,91202.0,0.05966992]
[1767529211412,0.01096407,91207.0,91203.0,0.04870525]
[1767529211614,0.06578456,91207.0,91203.0,0.04870525]
[1767529212432,0.05482177,91205.0,91203.0,0.04866025]
[1767529212733,0.06578522,91206.0,91203.0,0.04866025]
[1767529213311,0.06578522,91206.0,91201.0,0.02196]
[1767529213762,0.01096431,91205.0,91201.0,0.02196]
[1767529213949,0.01096431,91205.0,91201.0,0.03292479]
[1767529214347,0.01096431,91205.0,91201.0,0.02196]
[1767529214963,0.06578596,91205.0,91201.0,0.02196]
[1767529215167,0.01096431,91205.0,91201.0,0.02196]
[1767529215375,0.01096358,91211.0,91201.0,0.03292479]
[1767529215530,0.0109631,91215.0,91208.0,0.01096395]
[1767529215731,0.01096334,91213.0,91208.0,0.06578317]
[1767529215961,0.01096322,91214.0,91209.0,0.01096383]
[1767529216379,0.01096322,91214.0,91210.0,0.01096371]
[1767529216800,0.01096322,91214.0,91209.0,0.06578246]
[1767529217016,0.06577938,91214.0,91209.0,0.06578246]
[1767529217408,0.01096322,91214.0,91210.0,0.01096371]
[1767529218106,0.06577893,91215.0,91210.0,0.06578214]
[1767529218307,0.01096286,91217.0,91211.0,0.01096358]
[1767529218508,0.05481367,91219.0,91213.0,0.06577889]
[1767529218750,0.01096274,91218.0,91213.0,0.06577889]
[1767529218911,0.01096274,91218.0,91214.0,0.01096322]
[1767529219247,0.01096274,91218.0,91214.0,0.01091792]
[1767529219541,0.0657765,91218.0,91213.0,0.06577889]
[1767529219742,0.0657772,91217.0,91212.0,0.06578079]
[1767529219947,0.0657765,91218.0,91213.0,0.01096334]
[1767529220151,0.01096262,91219.0,91214.0,0.01096322]
[1767529220450,0.01096274,91218.0,91214.0,0.01096322]
[1767529220655,0.0657761,91219.0,91214.0,0.01096322]
[1767529221410,0.0657761,91219.0,91214.0,0.06577927]
[1767529221964,0.01096274,91218.0,91214.0,0.01096322]
[1767529222205,0.01096274,91218.0,91214.0,0.01091792]
[1767529223224,0.0657761,91219.0,91214.0,0.01091792]
[1767529223370,0.0111145,91220.0,91215.0,0.0109631]
[1767529224012,0.000152,91220.0,91216.0,0.01096298]
[1767529224212,0.0111145,91220.0,91216.0,0.01096298]
[1767529225221,0.01096274,91218.0,91214.0,0.02096322]
[1767529225403,0.0657758,91219.0,91214.0,0.07577925]
[1767529225564,0.06592707,91220.0,91215.0,0.06577855]
[1767529226049,0.0111145,91220.0,91216.0,0.06577788]
[1767529226222,0.000152,91220.0,91216.0,0.06577788]
[1767529226635,0.06592707,91220.0,91216.0,0.01096298]
[1767529226836,0.000152,91220.0,91217.0,0.01096286]
[1767529227057,0.05481056,91225.0,91218.0,0.06577637]
[1767529227260,0.06577264,91224.0,91221.0,0.00980271]
[1767529228448,0.01096214,91223.0,91219.0,0.01096262]
[1767529228979,0.06577291,91223.0,91218.0,0.01096274]
[1767529229188,0.06577291,91223.0,91218.0,0.0657763]
[1767529229551,0.06577291,91223.0,91218.0,0.11448155]
[1767529229752,0.06577363,91222.0,91218.0,0.04870525]
[1767529229953,0.06577436,91221.0,91218.0,0.04870525]
[1767529230195,0.06577363,91222.0,91221.0,0.00995471]
[1767529230498,0.01096214,91223.0,91221.0,0.00303513]
[1767529230671,0.06577345,91223.0,91221.0,0.00303513]
[1767529231247,0.01104514,91225.0,91221.0,0.00303513]
[1767529231445,0.01096202,91224.0,91221.0,0.00303513]
[1767529231884,8.324e-05,91225.0,91222.0,0.02196]
[1767529232086,0.01104514,91225.0,91222.0,0.02196]
[1767529232501,8.324e-05,91225.0,91222.0,0.02196]
[1767529232761,8.324e-05,91225.0,91222.0,0.03292226]
[1767529232892,8.324e-05,91225.0,91222.0,0.08773341]
[1767529233408,0.01096082,91234.0,91226.0,0.05480872]
[1767529233666,0.01096118,91231.0,91227.0,0.01096166]
[1767529234024,0.01096118,91231.0,91226.0,0.05480872]
[1767529234025,0.0109613,91230.0,91226.0,0.01096178]
[1767529234215,0.06576794,91230.0,91225.0,0.0109619]
[1767529234418,0.06576712,91231.0,91226.0,0.01096178]
[1767529234594,0.0109613,91230.0,91225.0,0.0109619]
[1767529234797,0.06576712,91231.0,91226.0,0.01096178]
[1767529235024,0.06576712,91231.0,91225.0,0.06577127]
[1767529235203,0.01096118,91231.0,91226.0,0.01096178]
[1767529235537,0.01096118,91231.0,91227.0,0.01096166]
[1767529235744,0.06576568,91233.0,91228.0,0.06576923]
[1767529235945,0.01096094,91233.0,91228.0,0.01096154]
[1767529236505,0.0657657,91233.0,91228.0,0.06576878]
[1767529237131,0.01096058,91236.0,91231.0,0.01096118]
[1767529237341,0.000999,91231.0,91230.0,0.0109613]
[1767529237504,0.0109607,91235.0,91230.0,0.06576735]
[1767529237711,0.01096082,91234.0,91229.0,0.06576745]
[1767529237915,0.0657647,91235.0,91230.0,0.06576781]
[1767529238434,0.000999,91230.0,91229.0,0.01096142]
[1767529238748,0.01096082,91234.0,91230.0,0.0109613]
[1767529239451,0.0109607,91235.0,91230.0,0.0109613]
[1767529239615,0.01111234,91238.0,91233.0,0.06576537]
[1767529239814,0.01096046,91237.0,91233.0,0.06572036]
[1767529240027,0.01096046,91237.0,91233.0,0.01091565]
[1767529240229,0.06591439,91238.0,91233.0,0.00991665]
[1767529240435,0.06576294,91237.0,91232.0,0.06576581]
[1767529240969,0.06591417,91238.0,91233.0,0.01096094]
[1767529241171,0.01096046,91237.0,91232.0,0.06576581]
[1767529241379,0.01096046,91237.0,91233.0,0.01096094]
[1767529241532,0.01096046,91237.0,91232.0,0.06576581]
[1767529241739,0.01096046,91237.0,91233.0,0.01096094]
[1767529241937,0.01096046,91237.0,91233.0,0.01091565]
[1767529242135,0.01096058,91236.0,91231.0,0.06576701]
[1767529242340,0.01096082,91234.0,91230.0,0.0109613]
[1767529242541,0.00031789,91230.0,91227.0,0.02192]
[1767529242741,0.27528541,91237.0,91219.0,0.01096262]
[1767529243100,0.01096202,91224.0,91218.0,0.01096274]
[1767529243376,0.01096214,91223.0,91215.0,0.05931408]
[1767529243709,0.01096166,91227.0,91223.0,0.000999]
[1767529243898,0.01096178,91226.0,91220.0,0.0109625]
[1767529244096,0.01097196,91227.0,91222.0,0.01096226]
[1767529244297,0.01097196,91227.0,91221.0,0.06577423]
[1767529244497,0.06577093,91226.0,91221.0,0.01096238]
[1767529244799,0.01096178,91226.0,91221.0,0.01096238]
[1767529245002,0.01096178,91226.0,91221.0,0.06577383]
[1767529245211,0.00697655,91225.0,91221.0,0.01096238]
[1767529245406,0.00697655,91225.0,91221.0,0.06577421]
[1767529245869,0.00697655,91225.0,91221.0,0.01096238]
[1767529246069,0.00697655,91225.0,91222.0,0.01096226]
[1767529246896,0.00597755,91225.0,91222.0,0.01096226]
[1767529247094,0.00597755,91225.0,91223.0,0.04835098]
[1767529247301,1e-08,91225.0,91223.0,0.04835098]
[1767529248522,1e-08,91225.0,91223.0,0.10316169]
[1767529248742,1e-08,91225.0,91224.0,0.04835098]
[1767529248962,1e-08,91225.0,91224.0,0.04830673]
[1767529249169,1e-08,91225.0,91224.0,0.04730773]
[1767529251671,0.05480954,91225.0,91224.0,0.04726349]
[1767529251866,1e-08,91225.0,91224.0,0.04726349]
[1767529253897,0.05480954,91225.0,91224.0,0.04128595]
[1767529254638,1e-08,91225.0,91224.0,0.04128595]
[1767529256035,1e-08,91225.0,91224.0,0.04124171]
[1767529260220,0.06577012,91227.0,91224.0,0.04124171]
[1767529260851,0.01096154,91228.0,91227.0,0.010999]
[1767529261058,0.06576973,91229.0,91227.0,0.01]
[1767529261396,0.06576789,91230.0,91227.0,0.05803304]
[1767529262180,0.05480773,91228.0,91227.0,0.05803304]
[1767529262342,0.05480773,91228.0,91227.0,0.04803304]
[1767529262539,0.0109625,91220.0,91195.0,0.66895217]
[1767529262761,0.01096322,91214.0,91209.0,0.04803304]
[1767529262968,0.054818,91211.0,91207.0,0.06995304]
[1767529263172,0.01096371,91210.0,91207.0,0.06995304]
[1767529263408,0.01096358,91211.0,91207.0,0.06995304]
[1767529263616,0.01096371,91210.0,91207.0,0.06995304]
[1767529263984,0.06578227,91210.0,91207.0,0.06995304]
[1767529264191,0.05481961,91209.0,91207.0,0.06995304]
[1767529264613,0.06578227,91210.0,91207.0,0.06995304]
[1767529266418,0.01096371,91210.0,91207.0,0.06995304]
[1767529266655,0.0657814,91212.0,91207.0,0.08091711]
[1767529266994,0.01096358,91211.0,91207.0,0.06995304]
[1767529267514,0.06578157,91211.0,91207.0,0.02192]
[1767529267735,0.0657812,91213.0,91207.0,0.02192]
[1767529267957,0.06578128,91212.0,91207.0,0.02192]
[1767529268164,0.05481818,91211.0,91207.0,0.02192]
[1767529268710,0.0548176,91212.0,91207.0,0.03288407]
[1767529269169,0.06578106,91212.0,91207.0,0.02192]
[1767529269520,0.01096358,91211.0,91207.0,0.03288407]
[1767529269754,0.01096358,91211.0,91207.0,0.02192]
[1767529270139,0.06578204,91211.0,91207.0,0.02192]
[1767529270404,0.01096334,91213.0,91208.0,0.01096395]
[1767529270594,0.06578059,91213.0,91211.0,0.01]
[1767529270789,0.06578059,91213.0,91211.0,0.009001]
[1767529270998,0.06578059,91213.0,91208.0,0.01096395]
[1767529271518,0.01096358,91211.0,91205.0,0.06578576]
[1767529271731,0.01096358,91211.0,91203.0,0.02192]
[1767529271732,0.05582101,91205.0,91203.0,0.02192]
[1767529271866,0.00093021,91205.0,91203.0,0.01189057]
[1767529272071,0.01096419,91206.0,91200.0,0.05482449]
[1767529272429,0.01096431,91205.0,91201.0,0.01096479]
[1767529272584,0.06578522,91206.0,91201.0,0.01096479]
[1767529273160,0.01096443,91204.0,91199.0,0.01096503]
[1767529273366,0.06578591,91205.0,91199.0,0.05482502]
[1767529274227,0.0657852,91206.0,91200.0,0.06578945]
[1767529275233,0.0657852,91206.0,91201.0,0.01096479]
[1767529275590,0.0657852,91206.0,91200.0,0.06578945]
[1767529275794,0.01096431,91205.0,91199.0,0.06579005]
[1767529276156,0.01096443,91204.0,91199.0,0.06579005]
[1767529276512,0.01096443,91204.0,91197.0,0.00049389]
[1767529276729,0.01096551,91195.0,91190.0,0.05899915]
[1767529276920,0.01096539,91196.0,91195.0,0.000999]
[1767529277146,0.05482756,91197.0,91195.0,0.000999]
[1767529277464,0.01096515,91198.0,91191.0,0.04803304]
[1767529277465,0.01096515,91198.0,91193.0,0.01096575]
[1767529277616,0.06579096,91198.0,91192.0,0.11382822]
[1767529277843,0.01096515,91198.0,91192.0,0.11382822]
[1767529278444,0.01096527,91197.0,91193.0,0.05899879]
[1767529278669,0.01096515,91198.0,91193.0,0.04803304]
[1767529278870,0.05482816,91194.0,91193.0,0.04803304]
[1767529279422,0.01096539,91196.0,91194.0,0.000999]
[1767529279575,0.01096539,91196.0,91193.0,0.04803304]
[1767529279975,0.0657925,91196.0,91193.0,0.04803304]
[1767529280178,0.06579185,91197.0,91193.0,0.04803304]
[1767529280378,0.01096539,91196.0,91193.0,0.04803304]
[1767529282055,0.06579163,91197.0,91193.0,0.04803304]
[1767529283374,0.01096539,91196.0,91193.0,0.04803304]
[1767529283593,0.06579163,91197.0,91193.0,0.04803304]
[1767529284108,0.01096539,91196.0,91193.0,0.04803304]
[1767529284518,0.0657925,91196.0,91193.0,0.03706573]
[1767529284922,0.05482807,91195.0,91193.0,0.03706573]
[1767529285217,0.065794,91194.0,91191.0,0.04803304]
[1767529285784,0.06570549,91194.0,91191.0,0.04803304]
[1767529286379,0.01096575,91193.0,91190.0,7.532e-05]
[1767529286662,0.01087712,91194.0,91190.0,0.04810836]
[1767529286869,0.01096539,91196.0,91193.0,0.000999]
[1767529287199,0.01096539,91196.0,91190.0,0.05907447]
[1767529287400,0.01096539,91196.0,91192.0,0.04803304]
[1767529288174,0.01096527,91197.0,91193.0,0.01096575]
[1767529288374,0.01096527,91197.0,91192.0,0.11382823]
[1767529288725,0.01096539,91196.0,91192.0,0.04803304]
[1767529290109,0.06579236,91196.0,91192.0,0.04803304]
[1767529290425,0.06579165,91197.0,91192.0,0.05899891]
[1767529290625,0.01096539,91196.0,91192.0,0.04803304]
[1767529290888,0.06579165,91197.0,91192.0,0.05899891]
[1767529291238,0.01096539,91196.0,91192.0,0.04803304]
[1767529291517,0.06579207,91197.0,91192.0,0.05899891]
[1767529291697,0.01096527,91197.0,91196.0,0.000999]
[1767529291849,0.01096527,91197.0,91196.0,0.00095372]
[1767529292051,0.01096527,91197.0,91192.0,0.11382827]
[1767529292255,0.06579195,91198.0,91193.0,0.01096575]
[1767529292554,0.01096527,91197.0,91192.0,0.11382827]
[1767529293370,0.06579195,91198.0,91193.0,0.01096575]
[1767529293893,0.01096527,91197.0,91192.0,0.11382827]
[1767529294469,0.01096515,91198.0,91193.0,0.01096575]
[1767529294697,0.01096515,91198.0,91192.0,0.11382827]
[1767529294932,0.01096515,91198.0,91193.0,0.06579449]
[1767529295087,0.06579021,91199.0,91194.0,0.01096563]